bitfinex/quotes_BTCUSD_20220205
["timestamp","ask_amount","ask_price","bid_price","bid_amount"]
[1644021244866,0.003,41710.0,41709.0,0.05]
[1644021245131,0.003,41710.0,41706.0,0.119839]
[1644021245332,0.003,41710.0,41707.0,0.179757]
[1644021245539,0.00179773,41712.0,41711.0,0.059913]
[1644021246538,0.001,41712.0,41710.0,0.02009053]
[1644021246727,0.001,41712.0,41710.0,0.08001953]
[1644021249969,0.15535081,41712.0,41710.0,0.08001953]
[1644021250167,0.001,41712.0,41710.0,0.08001953]
[1644021250471,0.001,41712.0,41710.0,0.059929]
[1644021251469,0.001,41712.0,41711.0,0.05]
[1644021252916,0.001,41712.0,41709.0,0.119845]
[1644021253316,0.001,41712.0,41707.0,0.05]
[1644021253518,0.00133745,41712.0,41708.0,0.22854845]
[1644021253717,0.06445724,41724.0,41707.0,0.05]
[1644021253917,0.00079773,41712.0,41707.0,0.05]
[1644021254124,0.00079773,41712.0,41708.0,0.119845]
[1644021254917,0.00033746,41717.0,41708.0,0.119845]
[1644021255135,0.13690913,41719.0,41708.0,0.119845]
[1644021255136,0.03999773,41716.0,41708.0,0.119845]
[1644021255316,0.0442,41716.0,41713.0,0.059914]
[1644021258064,0.0442,41716.0,41715.0,0.05]
[1644021258267,0.0442,41716.0,41713.0,0.1404298]
[1644021258462,0.00025335,41717.0,41713.0,0.1404298]
[1644021258662,0.0599137,41722.0,41713.0,0.1354298]
[1644021258862,0.00025335,41717.0,41713.0,0.054914]
[1644021259464,0.0442,41716.0,41707.0,0.119848]
[1644021259663,0.0442,41716.0,41710.0,0.059926]
[1644021260416,0.10412239,41716.0,41710.0,0.059926]
[1644021261117,0.00079769,41715.0,41710.0,0.059926]
[1644021261317,0.00079769,41715.0,41711.0,0.07124422]
[1644021261517,0.00079769,41715.0,41710.0,0.109926]
[1644021261716,0.00079769,41715.0,41710.0,0.049926]
[1644021262118,0.05991557,41720.0,41710.0,0.049926]
[1644021262318,0.14548896,41715.0,41710.0,0.099926]
[1644021262918,0.00079769,41715.0,41710.0,0.099926]
[1644021263321,0.05992203,41717.0,41710.0,0.049926]
[1644021263619,0.00079769,41715.0,41710.0,0.049926]
[1644021263864,0.00079769,41715.0,41707.0,0.169848]
[1644021264063,0.10412645,41714.0,41707.0,0.169848]
[1644021264663,0.15416198,41713.0,41707.0,0.169848]
[1644021264865,0.15449944,41713.0,41707.0,0.119848]
[1644021267366,0.0442,41712.0,41707.0,0.119848]
[1644021267614,0.04453746,41712.0,41707.0,0.119848]
[1644021267816,0.0442,41712.0,41707.0,0.119848]
[1644021268012,0.04453746,41712.0,41707.0,0.119848]
[1644021268212,0.0442,41712.0,41707.0,0.119848]
[1644021268514,0.0442,41712.0,41707.0,0.169848]
[1644021268717,0.04453746,41712.0,41707.0,0.169848]
[1644021268913,0.0442,41712.0,41707.0,0.169848]
[1644021269612,0.00113514,41714.0,41713.0,0.23639033]
[1644021269814,0.00079768,41714.0,41713.0,0.23639033]
[1644021270017,0.00079768,41714.0,41713.0,0.29630733]
[1644021270322,0.00079768,41714.0,41713.0,0.58194994]
[1644021270514,0.00033743,41719.0,41713.0,0.58194994]
[1644021270714,0.15717462,41722.0,41713.0,0.58194994]
[1644021270914,0.00079768,41716.0,41713.0,0.58194994]
[1644021271564,0.15330973,41722.0,41713.0,0.58194994]
[1644021272164,0.15330973,41722.0,41713.0,0.29630733]
[1644021272165,0.00079767,41717.0,41713.0,0.29630733]
[1644021272965,0.05991556,41721.0,41713.0,0.29630733]
[1644021273166,0.00025274,41718.0,41713.0,0.29630733]
[1644021273367,0.00025274,41718.0,41714.0,0.07715809]
[1644021273869,0.00025274,41718.0,41714.0,0.29818982]
[1644021274266,0.15330973,41722.0,41714.0,0.29818982]
[1644021274467,0.00025275,41718.0,41716.0,0.059912]
[1644021275314,0.15330973,41722.0,41716.0,0.059912]
[1644021275717,0.00079763,41719.0,41716.0,0.059912]
[1644021276518,0.05991459,41721.0,41715.0,0.119824]
[1644021276716,0.05991459,41721.0,41712.0,0.00079777]
[1644021277017,0.04879763,41720.0,41712.0,0.00079777]
[1644021277618,0.30525906,41717.0,41712.0,0.00079777]
[1644021277819,0.13294236,41712.0,41711.0,0.119843]
[1644021278019,0.048,41712.0,41711.0,0.119843]
[1644021278420,0.1,41717.0,41711.0,0.169843]
[1644021278620,0.1,41717.0,41713.0,0.05]
[1644021278874,0.1,41717.0,41711.0,0.20617549]
[1644021279079,0.0061647,41720.0,41713.0,0.05]
[1644021279277,0.00079764,41718.0,41715.0,0.1929421]
[1644021279475,0.00079764,41718.0,41717.0,0.059913]
[1644021280076,0.02148357,41725.0,41717.0,0.059913]
[1644021280278,0.02148357,41725.0,41718.0,0.05]
[1644021280577,0.00025253,41720.0,41718.0,0.05]
[1644021280978,0.00025253,41720.0,41717.0,0.059913]
[1644021281379,0.14612291,41724.0,41717.0,0.059913]
[1644021281582,0.00025253,41721.0,41717.0,0.059913]
[1644021281781,0.00025253,41721.0,41718.0,0.26305563]
[1644021282515,0.001,41725.0,41718.0,0.26305563]
[1644021282712,0.001,41725.0,41719.0,0.059908]
[1644021282912,0.00025253,41722.0,41719.0,0.059908]
[1644021283813,0.001,41725.0,41719.0,0.059908]
[1644021284016,0.00079797,41723.0,41719.0,0.059908]
[1644021285014,0.001,41725.0,41719.0,0.059908]
[1644021285214,0.00079797,41723.0,41719.0,0.059908]
[1644021285422,0.00079797,41723.0,41718.0,0.0003]
[1644021285618,0.048,41722.0,41718.0,0.0003]
[1644021285819,0.11984683,41721.0,41718.0,0.0003]
[1644021286015,0.048,41720.0,41718.0,0.0003]
[1644021286263,0.21217951,41720.0,41718.0,0.0003]
[1644021286865,0.21217951,41720.0,41719.0,0.059919]
[1644021287064,0.119538,41718.0,41712.0,0.00079817]
[1644021287463,0.119538,41718.0,41715.0,0.119838]
[1644021287663,0.12033602,41718.0,41715.0,0.119838]
[1644021288564,0.119538,41718.0,41715.0,0.119838]
[1644021288764,0.119538,41718.0,41710.0,0.12401178]
[1644021288765,0.119538,41718.0,41712.0,0.00079815]
[1644021288965,0.048,41717.0,41712.0,0.00079815]
[1644021289264,0.15067956,41717.0,41712.0,0.00079815]
[1644021289866,0.11409901,41717.0,41711.0,0.059932]
[1644021290121,0.05416542,41717.0,41712.0,0.00079814]
[1644021290919,0.05416542,41717.0,41711.0,0.059932]
[1644021291118,0.05416542,41717.0,41712.0,0.00079814]
[1644021291320,0.32906,41716.0,41712.0,0.00079814]
[1644021291520,0.048,41715.0,41712.0,0.00079814]
[1644021291820,0.32906,41714.0,41712.0,0.00079814]
[1644021292121,0.20570161,41713.0,41710.0,0.12401178]
[1644021292321,0.20570161,41713.0,41711.0,0.00079815]
[1644021293018,0.048,41713.0,41711.0,0.00079815]
[1644021293520,0.048,41713.0,41711.0,0.059932]
[1644021293771,0.1,41715.0,41712.0,0.22816335]
[1644021293970,0.00616542,41717.0,41712.0,0.27816335]
[1644021294170,0.00616542,41717.0,41712.0,0.05]
[1644021294572,0.00616542,41717.0,41713.0,0.119837]
[1644021294975,0.06608756,41717.0,41713.0,0.119837]
[1644021295371,0.00616542,41717.0,41713.0,0.119837]
[1644021300018,0.00616542,41717.0,41713.0,0.169837]
[1644021300219,0.00616542,41717.0,41716.0,0.05]
[1644021300415,0.00616542,41717.0,41716.0,0.27756645]
[1644021300616,0.119538,41718.0,41716.0,0.27756645]
[1644021300818,0.119538,41718.0,41716.0,0.05]
[1644021301468,0.119538,41718.0,41716.0,0.109909]
[1644021302573,0.119538,41718.0,41716.0,0.108289]
[1644021303776,0.1844,41726.0,41716.0,0.108289]
[1644021303777,0.15744735,41726.0,41722.0,0.20495723]
[1644021303976,0.15744735,41726.0,41723.0,0.059904]
[1644021304176,0.00619135,41729.0,41723.0,0.059904]
[1644021304177,0.003,41729.0,41723.0,0.059904]
[1644021305331,0.003,41729.0,41722.0,0.41106026]
[1644021305332,0.003,41729.0,41726.0,0.059898]
[1644021305525,0.00616764,41733.0,41732.0,0.08466778]
[1644021305724,0.00150809,41734.0,41732.0,0.08466778]
[1644021306324,0.003,41735.0,41734.0,0.6]
[1644021306528,0.6068,41750.0,41738.0,0.12964589]
[1644021306737,0.6068,41750.0,41746.0,0.05]
[1644021306738,0.02113072,41747.0,41746.0,0.05]
[1644021306928,0.001,41754.0,41746.0,0.04829]
[1644021307123,0.001,41754.0,41751.0,0.08911797]
[1644021307331,0.00171,41757.0,41753.0,0.04829]
[1644021307529,0.001,41764.0,41756.0,0.04829]
[1644021307837,0.001,41764.0,41752.0,0.49465621]
[1644021307838,0.05,41768.0,41752.0,0.41124101]
[1644021308024,0.05,41768.0,41753.0,0.04714]
[1644021308325,0.05,41771.0,41754.0,0.995]
[1644021308529,0.05,41775.0,41756.0,0.13763027]
[1644021308802,0.05,41779.0,41774.0,0.08488985]
[1644021309004,0.05,41779.0,41774.0,0.08288985]
[1644021309202,0.00019372,41782.0,41774.0,0.08288985]
[1644021309400,0.05,41778.0,41774.0,0.08288985]
[1644021309600,0.00019372,41782.0,41775.0,0.19151378]
[1644021309808,0.05,41779.0,41775.0,0.19151378]
[1644021310000,0.00019372,41782.0,41775.0,0.19151378]
[1644021310206,0.05,41776.0,41774.0,0.05982]
[1644021310403,0.05,41776.0,41775.0,0.02187659]
[1644021310705,0.19165939,41776.0,41775.0,0.02187659]
[1644021311105,0.05,41776.0,41775.0,6.59e-06]
[1644021311319,0.37906,41776.0,41775.0,6.59e-06]
[1644021311505,0.50093,41776.0,41775.0,6.59e-06]
[1644021311701,0.60093,41776.0,41775.0,6.59e-06]
[1644021312531,0.68220864,41776.0,41775.0,6.59e-06]
[1644021312727,0.05,41769.0,41753.0,0.5]
[1644021312930,0.05,41754.0,41753.0,0.5]
[1644021313128,0.05,41754.0,41750.0,0.11972]
[1644021313327,0.18714582,41751.0,41750.0,0.37754183]
[1644021313527,0.045,41751.0,41750.0,0.37754183]
[1644021313730,0.045,41751.0,41750.0,0.44527901]
[1644021314229,0.045,41751.0,41750.0,0.37754183]
[1644021315630,0.045,41751.0,41750.0,0.25782183]
[1644021316469,0.045,41751.0,41750.0,0.33933686]
[1644021317071,0.045,41751.0,41750.0,0.25782183]
[1644021317473,0.045,41752.0,41750.0,0.48224276]
[1644021317673,0.62787951,41764.0,41751.0,0.30091288]
[1644021317674,0.0007491,41753.0,41751.0,0.30091288]
[1644021317873,0.0007491,41753.0,41752.0,0.23572872]
[1644021318080,0.0007491,41753.0,41752.0,0.07009531]
[1644021318577,0.0457491,41753.0,41752.0,0.07009531]
[1644021318777,0.16636633,41758.0,41750.0,0.37752683]
[1644021318974,0.00074937,41755.0,41750.0,0.37752683]
[1644021319174,0.045,41754.0,41750.0,0.37752683]
[1644021319575,0.12659421,41751.0,41750.0,0.119705]
[1644021319779,0.12659421,41751.0,41746.0,0.119723]
[1644021319780,0.16659421,41751.0,41743.0,0.11973]
[1644021320023,0.16659421,41751.0,41741.0,0.005]
[1644021320024,0.045,41744.0,41741.0,0.005]
[1644021320625,0.045,41747.0,41742.0,0.20585057]
[1644021320822,0.045,41747.0,41743.0,0.059869]
[1644021321222,0.198,41756.0,41750.0,0.13499216]
[1644021321428,0.198,41756.0,41751.0,0.05]
[1644021321429,0.0029974,41753.0,41751.0,0.05]
[1644021321822,0.0029974,41753.0,41751.0,0.31665195]
[1644021322423,0.02001936,41759.0,41751.0,0.21665195]
[1644021322622,0.00070506,41754.0,41751.0,0.21665195]
[1644021323023,0.00070506,41754.0,41751.0,0.21503195]
[1644021323425,0.05,41752.0,41751.0,0.21503195]
[1644021323626,0.05,41752.0,41751.0,0.059859]
[1644021323869,0.05,41752.0,41747.0,0.119718]
[1644021324074,0.05,41748.0,41744.0,0.119731]
[1644021324468,0.00070506,41755.0,41744.0,0.18449009]
[1644021324670,0.05,41745.0,41744.0,0.34174678]
[1644021325674,0.00281981,41754.0,41744.0,0.34604172]
[1644021325873,0.04570506,41747.0,41746.0,0.06566271]
[1644021326072,0.04570506,41747.0,41744.0,0.34604172]
[1644021326272,0.04570506,41747.0,41744.0,0.34174678]
[1644021326476,0.2635,41759.0,41744.0,0.34174678]
[1644021326477,0.0962687,41789.0,41747.0,0.85]
[1644021326687,0.00105616,41790.0,41781.0,0.995]
[1644021326883,0.25644325,41813.0,41792.0,0.15]
[1644021327093,1.61148339,41822.0,41789.0,1.04502442]
[1644021327094,0.101,41820.0,41808.0,0.15]
[1644021327281,0.1015,41819.0,41812.0,0.15]
[1644021327534,0.25551189,41842.0,41814.0,0.05]
[1644021327729,0.781,41847.0,41814.0,0.2]
[1644021327730,0.00031512,41822.0,41814.0,0.2]
[1644021327983,0.00031512,41822.0,41815.0,0.048]
[1644021327984,0.00063024,41822.0,41815.0,0.048]
[1644021328230,0.00063024,41822.0,41812.0,0.059765]
[1644021328231,0.07792491,41814.0,41813.0,0.048]
[1644021328429,0.00063024,41822.0,41813.0,0.048]
[1644021329028,0.00063024,41822.0,41813.0,0.22594592]
[1644021329230,0.00063024,41822.0,41814.0,0.058763]
[1644021329427,0.00063024,41822.0,41815.0,0.15]
[1644021329626,0.00063024,41822.0,41814.0,0.058763]
[1644021329827,0.00063024,41822.0,41813.0,0.059771]
[1644021330253,0.00063024,41822.0,41808.0,0.059782]
[1644021330734,0.00063024,41822.0,41813.0,0.02146665]
[1644021330735,0.23326444,41815.0,41813.0,0.02146665]
[1644021330933,0.23326444,41815.0,41799.0,0.22594592]
[1644021330934,0.12313442,41801.0,41799.0,0.22594592]
[1644021331130,0.12313442,41801.0,41796.0,0.119584]
[1644021331131,0.0643885,41800.0,41796.0,0.119584]
[1644021331375,0.09287437,41813.0,41797.0,0.23887]
[1644021331574,0.12146665,41814.0,41797.0,0.248]
[1644021331878,0.19210383,41807.0,41798.0,0.23887]
[1644021332075,0.19210383,41807.0,41803.0,0.195]
[1644021332272,0.0007975,41808.0,41803.0,0.195]
[1644021332474,0.02875817,41807.0,41798.0,0.05]
[1644021332673,0.07987369,41801.0,41796.0,0.119578]
[1644021332880,0.07987369,41801.0,41792.0,0.05]
[1644021333075,0.12987369,41801.0,41788.0,0.0367]
[1644021333273,0.07407063,41792.0,41788.0,0.27557]
[1644021333476,0.07407063,41792.0,41788.0,0.0367]
[1644021334774,0.13079593,41791.0,41788.0,0.0367]
[1644021335419,0.07407063,41792.0,41788.0,0.0367]
[1644021335620,0.35939504,41796.0,41788.0,0.0367]
[1644021336024,0.00025077,41792.0,41788.0,0.0367]
[1644021336431,0.18603816,41791.0,41788.0,0.0367]
[1644021336620,0.32906,41790.0,41788.0,0.0367]
[1644021336825,0.048,41789.0,41788.0,0.0317]
[1644021337130,0.048,41789.0,41780.0,0.119613]
[1644021337131,0.12097897,41781.0,41780.0,0.119613]
[1644021337329,0.12097897,41781.0,41775.0,0.05]
[1644021337330,0.048,41785.0,41776.0,0.145]
[1644021337523,0.06818218,41779.0,41776.0,0.145]
[1644021337728,0.044,41788.0,41780.0,0.119624]
[1644021337924,0.23806457,41790.0,41781.0,0.22539625]
[1644021337925,0.044,41787.0,41781.0,0.22539625]
[1644021338123,0.044,41787.0,41780.0,0.119624]
[1644021338323,0.37768211,41790.0,41780.0,0.119624]
[1644021338526,0.00319257,41786.0,41780.0,0.119624]
[1644021338768,0.07584941,41781.0,41780.0,0.119624]
[1644021339572,0.29005108,41781.0,41780.0,0.119624]
[1644021340368,0.29005108,41781.0,41778.0,0.05]
[1644021340567,0.29005108,41781.0,41775.0,0.109824]
[1644021341569,0.07584941,41781.0,41775.0,0.109824]
[1644021341771,0.044,41782.0,41778.0,0.05]
[1644021341972,0.044,41782.0,41780.0,0.119639]
[1644021342825,0.07713891,41781.0,41780.0,0.119639]
[1644021343426,0.30996466,41781.0,41780.0,0.119639]
[1644021343626,0.00074684,41783.0,41781.0,0.3]
[1644021343828,0.00074684,41783.0,41781.0,0.11962]
[1644021344026,0.20064068,41784.0,41781.0,0.11962]
[1644021344525,0.20138751,41784.0,41781.0,0.11962]
[1644021344726,0.06490169,41783.0,41781.0,0.11962]
[1644021345325,0.06490169,41783.0,41780.0,0.119639]
[1644021345726,0.06490169,41783.0,41780.0,0.179452]
[1644021345925,0.03930649,41793.0,41780.0,0.179452]
[1644021346125,0.06629026,41786.0,41780.0,0.179452]
[1644021346373,0.6114,41797.0,41782.0,0.05]
[1644021346571,0.02143187,41796.0,41786.0,0.059811]
[1644021346770,0.7114,41797.0,41786.0,0.059811]
[1644021346971,0.12655926,41793.0,41786.0,0.059811]
[1644021347171,0.20819105,41787.0,41786.0,0.059811]
[1644021347372,0.14266945,41787.0,41786.0,0.059811]
[1644021347574,0.14266945,41787.0,41780.0,0.119639]
[1644021347772,0.12278002,41784.0,41780.0,0.119639]
[1644021347978,0.12505094,41783.0,41774.0,0.05983]
[1644021348472,0.19396086,41779.0,41774.0,0.05983]
[1644021348672,0.23796086,41779.0,41774.0,0.05983]
[1644021348875,0.06837452,41776.0,41774.0,0.05983]
[1644021349073,0.11237452,41776.0,41774.0,0.05983]
[1644021349473,0.00079775,41792.0,41774.0,0.05983]
[1644021349474,0.1,41789.0,41774.0,0.05983]
[1644021349673,0.00079775,41792.0,41781.0,0.059809]
[1644021349874,0.00079775,41792.0,41781.0,0.29008545]
[1644021350123,0.24640907,41790.0,41781.0,0.059809]
[1644021350322,0.24640907,41790.0,41784.0,0.00079795]
[1644021350523,0.08599793,41788.0,41784.0,0.00079795]
[1644021351324,0.08599793,41788.0,41781.0,0.059809]
[1644021351925,0.24382541,41792.0,41787.0,0.195]
[1644021351926,0.00024565,41792.0,41787.0,0.195]
[1644021352127,0.00024565,41792.0,41791.0,0.254798]
[1644021352424,0.00098234,41803.0,41791.0,0.254798]
[1644021352625,0.01876855,41805.0,41791.0,0.254798]
[1644021352824,0.00024567,41794.0,41793.0,0.059792]
[1644021353023,0.00024567,41794.0,41793.0,0.109792]
[1644021353225,0.00024567,41794.0,41785.0,0.1]
[1644021353226,0.1497065,41785.0,41783.0,0.05]
[1644021353424,0.23512438,41791.0,41779.0,0.01987728]
[1644021353625,1.1,41792.0,41779.0,0.01987728]
[1644021353872,1.1,41792.0,41783.0,0.00079742]
[1644021354173,0.18995819,41791.0,41783.0,0.00079742]
[1644021354373,0.1483853,41787.0,41783.0,0.00079742]
[1644021354569,0.18503577,41787.0,41783.0,0.00079742]
[1644021354772,0.21464535,41784.0,41783.0,0.00079742]
[1644021354970,0.07664535,41784.0,41782.0,0.059815]
[1644021355170,0.0840856,41784.0,41783.0,0.00079742]
[1644021356169,0.0840856,41784.0,41782.0,0.059815]
[1644021357171,0.12679495,41787.0,41782.0,0.109815]
[1644021357370,0.0859978,41786.0,41782.0,0.109815]
[1644021357621,0.0859978,41786.0,41782.0,0.059815]
[1644021358842,0.19005392,41767.0,41764.0,0.130185]
[1644021359056,0.11898344,41760.0,41756.0,0.30155051]
[1644021359231,0.07742272,41760.0,41759.0,0.05]
[1644021359430,0.1,41780.0,41756.0,0.059849]
[1644021359431,0.044,41770.0,41756.0,0.059849]
[1644021359727,0.1989531,41766.0,41759.0,0.05]
[1644021359928,0.044,41765.0,41760.0,0.05]
[1644021360127,0.044,41765.0,41756.0,0.059849]
[1644021360128,0.044,41765.0,41757.0,0.2]
[1644021360329,0.11660636,41765.0,41757.0,0.2]
[1644021360527,0.11660636,41765.0,41756.0,0.059849]
[1644021360528,0.16660636,41765.0,41759.0,0.05]
[1644021360928,0.16660636,41765.0,41756.0,0.059849]
[1644021361382,0.16660636,41765.0,41759.0,0.05]
[1644021361383,0.044,41765.0,41759.0,0.05]
[1644021361626,0.02047544,41772.0,41764.0,0.05]
[1644021361780,0.02047544,41772.0,41767.0,0.05]
[1644021361781,0.20672023,41769.0,41767.0,0.05]
[1644021361989,0.85,41768.0,41760.0,0.069667]
[1644021362376,0.85,41768.0,41766.0,0.0005514]
[1644021362675,0.28231716,41767.0,41766.0,0.0005514]
[1644021363075,0.28231716,41767.0,41766.0,0.00010831]
[1644021363273,0.33231716,41767.0,41755.0,0.059848]
[1644021363474,0.2298959,41762.0,41755.0,0.059848]
[1644021363679,0.13432483,41759.0,41755.0,0.059848]
[1644021363875,0.07396877,41760.0,41755.0,0.059848]
[1644021364074,0.05545877,41760.0,41756.0,0.00750424]
[1644021364481,0.05545877,41760.0,41759.0,0.00750424]
[1644021364676,0.05545877,41760.0,41756.0,0.00750424]
[1644021364876,0.1540362,41765.0,41756.0,0.00750424]
[1644021365126,0.01958989,41770.0,41769.0,0.05150424]
[1644021365929,0.17846072,41770.0,41769.0,0.05150424]
[1644021366128,0.08406613,41770.0,41769.0,0.05150424]
[1644021366827,0.06447624,41770.0,41769.0,0.05150424]
[1644021367028,0.06447624,41770.0,41765.0,0.059839]
[1644021367427,0.02178258,41770.0,41765.0,0.059839]
[1644021367626,0.24899638,41771.0,41765.0,0.059839]
[1644021368026,0.24820789,41771.0,41765.0,0.059839]
[1644021368627,0.19899638,41771.0,41765.0,0.059839]
[1644021368871,0.06361545,41779.0,41765.0,0.059839]
[1644021369072,0.01961545,41779.0,41765.0,0.059839]
[1644021369269,0.01961545,41779.0,41774.0,0.138]
[1644021369575,0.32906,41783.0,41774.0,0.138]
[1644021369769,0.0829459,41775.0,41774.0,0.138]
[1644021370475,0.00079696,41781.0,41774.0,0.138]
[1644021370671,0.5418,41786.0,41775.0,0.05]
[1644021371073,0.5418,41786.0,41776.0,0.37553506]
[1644021371374,0.5368,41786.0,41776.0,0.37553506]
[1644021371571,0.07833242,41785.0,41778.0,0.05]
[1644021372175,0.00079731,41783.0,41777.0,0.35028352]
[1644021372370,0.00079731,41783.0,41782.0,0.05]
[1644021372637,0.019877,41788.0,41783.0,1.1]
[1644021372838,0.00318875,41789.0,41787.0,0.05]
[1644021373037,0.01936977,41794.0,41789.0,0.13781125]
[1644021373334,0.01936977,41794.0,41793.0,0.05]
[1644021374036,0.001,41795.0,41794.0,0.7]
[1644021374237,0.001,41795.0,41794.0,0.744]
[1644021374435,0.002,41800.0,41795.0,0.7]
[1644021374636,0.002,41800.0,41799.0,0.19429386]
[1644021375434,0.002,41800.0,41799.0,0.24907586]
[1644021376034,0.002,41800.0,41799.0,0.47736433]
[1644021376478,0.002,41800.0,41799.0,0.24907586]
[1644021377480,0.00170001,41800.0,41799.0,0.24907586]
[1644021378278,0.00170001,41800.0,41799.0,0.059782]
[1644021378679,0.00170001,41800.0,41799.0,0.109782]
[1644021379078,0.00170001,41800.0,41799.0,0.059782]
[1644021379480,0.00170001,41800.0,41788.0,0.35028352]
[1644021379681,0.08152401,41793.0,41792.0,0.059799]
[1644021379885,0.22401419,41800.0,41792.0,0.059799]
[1644021380136,0.05,41793.0,41792.0,0.059799]
[1644021380335,0.27401419,41800.0,41792.0,0.059799]
[1644021380336,0.05170001,41800.0,41792.0,0.059799]
[1644021380533,0.00079683,41798.0,41792.0,0.054799]
[1644021381133,0.06422734,41798.0,41792.0,0.054799]
[1644021381533,0.05170001,41800.0,41792.0,0.054799]
[1644021381736,0.00079684,41797.0,41792.0,0.054799]
[1644021382140,0.14027973,41796.0,41789.0,0.35028352]
[1644021382336,0.044,41795.0,41789.0,0.35028352]
[1644021382534,0.07614482,41791.0,41789.0,0.35028352]
[1644021382739,0.07614482,41791.0,41786.0,0.40028352]
[1644021382935,0.025,41791.0,41787.0,0.00079789]
[1644021383135,0.00079776,41794.0,41787.0,0.00079789]
[1644021383436,0.20126837,41794.0,41787.0,0.3765471]
[1644021383634,0.025,41788.0,41787.0,0.00079789]
[1644021383869,0.08724461,41788.0,41786.0,0.119601]
[1644021384068,0.11224461,41788.0,41787.0,0.00079789]
[1644021384471,0.10485671,41788.0,41787.0,0.00079789]
[1644021384668,0.23442689,41788.0,41787.0,0.00079789]
[1644021384869,0.09985671,41788.0,41787.0,0.00079789]
[1644021385069,0.14985671,41788.0,41784.0,0.059809]
[1644021385274,0.2284054,41786.0,41785.0,0.0007979]
[1644021385469,0.25105001,41786.0,41785.0,0.0007979]
[1644021386168,0.02264461,41786.0,41784.0,0.40928242]
[1644021386370,0.1272121,41788.0,41785.0,0.02735539]
[1644021386371,0.05,41788.0,41785.0,0.02735539]
[1644021386570,0.02264461,41790.0,41784.0,0.40928242]
[1644021386772,0.00077292,41791.0,41783.0,0.35105658]
[1644021386773,0.02264461,41785.0,41783.0,0.35105658]
[1644021386969,0.02264461,41785.0,41783.0,0.00077306]
[1644021387170,0.04983425,41786.0,41783.0,0.00077306]
[1644021387373,0.09983425,41786.0,41783.0,0.00077306]
[1644021387620,0.03985083,41786.0,41780.0,0.11962]
[1644021387823,0.03985083,41786.0,41779.0,0.35028352]
[1644021387824,0.0684904,41784.0,41778.0,0.35028352]
[1644021388820,0.0684904,41784.0,41776.0,0.2830823]
[1644021389120,0.0684904,41784.0,41776.0,0.059824]
[1644021389321,0.1860887,41785.0,41776.0,0.059824]
[1644021389519,0.07405421,41779.0,41776.0,0.059824]
[1644021390019,0.1860887,41785.0,41776.0,0.059824]
[1644021390619,0.1860887,41785.0,41778.0,0.05]
[1644021390825,0.1860887,41785.0,41779.0,0.32765103]
[1644021391019,0.14163758,41785.0,41779.0,0.32765103]
[1644021391268,0.044,41789.0,41780.0,0.21969378]
[1644021391470,0.2757,41794.0,41785.0,0.05]
[1644021391668,0.01820531,41791.0,41785.0,0.05]
[1644021392070,0.01820531,41791.0,41787.0,0.059807]
[1644021392268,0.25551965,41788.0,41787.0,0.059807]
[1644021392470,0.01820531,41791.0,41787.0,0.109807]
[1644021392669,0.01820531,41791.0,41790.0,0.05]
[1644021392869,0.5698,41796.0,41790.0,0.05]
[1644021393072,0.00170001,41800.0,41790.0,0.16959]
[1644021393469,0.24236668,41793.0,41790.0,0.16959]
[1644021393870,0.22736668,41793.0,41790.0,0.16959]
[1644021394269,0.00079804,41797.0,41790.0,0.16959]
[1644021394471,0.00079804,41797.0,41794.0,0.05]
[1644021394671,0.00079804,41797.0,41795.0,0.21202875]
[1644021394870,0.00170001,41800.0,41794.0,0.05]
[1644021395119,0.00079803,41798.0,41794.0,0.05]
[1644021395319,0.00079803,41798.0,41795.0,0.059785]
[1644021395521,0.00079803,41798.0,41796.0,0.119573]
[1644021396121,0.00170001,41800.0,41796.0,0.119573]
[1644021396321,0.06617466,41798.0,41796.0,0.119573]
[1644021396722,0.06617466,41798.0,41796.0,0.086273]
[1644021397323,0.00170001,41800.0,41796.0,0.086273]
[1644021397524,0.00079801,41799.0,41796.0,0.136273]
[1644021397724,0.00079801,41799.0,41796.0,0.086273]
[1644021398328,0.00079801,41799.0,41791.0,0.05]
[1644021398526,0.08243411,41798.0,41794.0,0.059798]
[1644021398972,0.14646071,41797.0,41790.0,0.24341939]
[1644021399270,0.08243411,41798.0,41790.0,0.24341939]
[1644021399672,0.34494703,41801.0,41790.0,0.24341939]
[1644021399870,0.06790072,41796.0,41790.0,0.24341939]
[1644021400075,0.12457127,41793.0,41790.0,0.24341939]
[1644021400275,0.17457127,41793.0,41790.0,0.12382939]
[1644021400473,0.32906,41792.0,41790.0,0.12382939]
[1644021400672,0.044,41792.0,41790.0,0.12382939]
[1644021400877,0.144,41792.0,41790.0,0.12382939]
[1644021401275,0.094,41792.0,41790.0,0.12382939]
[1644021401674,0.23318133,41792.0,41790.0,0.12382939]
[1644021402525,0.18918133,41792.0,41790.0,0.12382939]
[1644021403722,0.05,41792.0,41790.0,0.12382939]
[1644021403921,0.44792059,41794.0,41790.0,0.12382939]
[1644021404121,0.29792059,41794.0,41790.0,0.12382939]
[1644021404524,0.34792059,41794.0,41790.0,0.12382939]
[1644021404823,0.48455658,41794.0,41790.0,0.12382939]
[1644021405024,0.63455658,41794.0,41790.0,0.12382939]
[1644021405424,0.48455658,41794.0,41790.0,0.12382939]
[1644021405825,0.22684358,41794.0,41790.0,0.12382939]
[1644021407370,0.27684358,41794.0,41790.0,0.12382939]
[1644021408372,0.32684358,41794.0,41790.0,0.12382939]
[1644021408782,0.42684358,41794.0,41790.0,0.12382939]
[1644021409375,0.42684358,41794.0,41790.0,0.18363739]
[1644021409777,0.24020759,41794.0,41790.0,0.18363739]
[1644021410029,0.19620759,41794.0,41790.0,0.18363739]
[1644021410223,0.09620759,41794.0,41790.0,0.18363739]
[1644021410423,0.0005,41798.0,41790.0,0.18363739]
[1644021410823,0.0005,41798.0,41790.0,0.3931063]
[1644021411225,0.06780464,41796.0,41790.0,0.18363739]
[1644021411435,0.28472435,41796.0,41790.0,0.18363739]
[1644021411625,0.33472435,41796.0,41790.0,0.18363739]
[1644021411825,0.15066008,41795.0,41790.0,0.18363739]
[1644021412425,0.43472435,41796.0,41790.0,0.18363739]